bitfinex-derivatives/quotes_BTCF0:USTF0_20250711
["timestamp","ask_amount","ask_price","bid_price","bid_amount"]
[1752195607461,0.86810588,115660.0,115650.0,0.00012974]
[1752195607764,0.91439113,115660.0,115650.0,0.00012974]
[1752195608766,0.86810588,115660.0,115650.0,0.00012974]
[1752195608969,0.93781356,115660.0,115650.0,0.00012974]
[1752195609463,0.98409881,115660.0,115650.0,0.00012974]
[1752195609665,0.86810588,115660.0,115650.0,0.17304044]
[1752195609857,0.64609708,115660.0,115650.0,0.17304044]
[1752195610061,0.64609708,115660.0,115650.0,0.18852044]
[1752195610273,0.63729571,115660.0,115650.0,0.22122044]
[1752195610465,0.60539571,115660.0,115650.0,0.44322924]
[1752195610662,0.65168096,115660.0,115650.0,0.47562924]
[1752195610861,0.65168096,115660.0,115650.0,0.25362044]
[1752195611170,0.29093417,115660.0,115650.0,0.25362044]
[1752195611370,0.25957416,115660.0,115650.0,0.27778044]
[1752195612370,0.08667846,115660.0,115650.0,0.49978924]
[1752195613270,0.04034,115660.0,115650.0,0.50022924]
[1752195613469,0.07121846,115670.0,115660.0,0.2125357]
[1752195613769,0.07181847,115670.0,115660.0,1.1120045]
[1752195613971,0.07121846,115670.0,115660.0,1.4732445]
[1752195614164,0.02488,115670.0,115660.0,1.4732445]
[1752195614362,0.02488,115670.0,115660.0,1.4820696]
[1752195614560,0.0868082,115680.0,115670.0,0.2125208]
[1752195614861,0.0868082,115680.0,115670.0,0.5007296]
[1752195615064,0.04046974,115680.0,115670.0,0.5011696]
[1752195615465,0.08677628,115680.0,115670.0,0.5011696]
[1752195615662,0.08677628,115680.0,115670.0,0.8619696]
[1752195615871,0.04643628,115680.0,115670.0,0.8619696]
[1752195616269,0.00012974,115680.0,115670.0,0.8619696]
[1752195618362,0.00012974,115680.0,115670.0,1.0839784]
[1752195618776,0.00012974,115680.0,115670.0,0.8619696]
[1752195620171,0.00012974,115680.0,115670.0,1.0839784]
[1752195621377,0.00012974,115680.0,115670.0,0.6399608]
[1752195621575,0.08677628,115680.0,115670.0,1.4734096]
[1752195622775,0.04046974,115680.0,115670.0,1.4734096]
[1752195623778,0.43534434,115680.0,115670.0,0.2217008]
[1752195623978,0.49784434,115680.0,115670.0,0.2212608]
[1752195624185,0.32214208,115680.0,115670.0,0.2212608]
[1752195624378,0.27583554,115680.0,115670.0,0.2212608]
[1752195624575,0.33708864,115680.0,115670.0,0.04838]
[1752195624780,0.33708864,115680.0,115670.0,0.01548]
[1752195626286,0.33708864,115680.0,115670.0,0.1883608]
[1752195627183,0.33708864,115680.0,115670.0,0.2130208]
[1752195627987,0.33708864,115680.0,115670.0,0.1883608]
[1752195628187,0.33768865,115680.0,115670.0,0.1883608]
[1752195628787,0.69848865,115680.0,115670.0,0.01548]
[1752195629387,0.69848865,115680.0,115670.0,0.1883608]
[1752195629576,0.33768865,115680.0,115670.0,0.1883608]
[1752195630788,1.56044865,115680.0,115670.0,0.1883608]
[1752195632784,1.56044865,115680.0,115670.0,0.01548]
[1752195633186,0.2140608,115670.0,115660.0,1.04314816]
[1752195633488,0.07278,115670.0,115660.0,1.05836816]
[1752195633991,0.11916222,115670.0,115660.0,1.05836816]
[1752195635888,0.11916222,115670.0,115660.0,1.08856816]
[1752195636095,0.11916222,115670.0,115660.0,1.69988816]
[1752195637090,0.29204302,115670.0,115660.0,1.69988816]
[1752195637395,0.29204302,115670.0,115660.0,0.59184378]
[1752195637594,0.32224302,115670.0,115660.0,0.59184378]
[1752195638397,0.32280303,115670.0,115660.0,0.59228378]
[1752195638796,0.32280303,115670.0,115660.0,0.23148378]
[1752195638987,0.32280303,115670.0,115660.0,0.59184378]
[1752195639189,0.32280303,115670.0,115660.0,0.59228378]
[1752195639383,0.32280303,115670.0,115660.0,0.23148378]
[1752195639583,0.32280303,115670.0,115660.0,0.23104378]
[1752195640196,0.32280303,115670.0,115660.0,0.05814808]
[1752195640397,0.10354001,115670.0,115660.0,0.23104378]
[1752195640599,0.2758608,115670.0,115660.0,0.23104378]
[1752195641292,0.2758608,115670.0,115660.0,0.20638378]
[1752195641494,0.2140757,115660.0,115650.0,0.54905954]
[1752195641695,1.90693792,115660.0,115650.0,0.01578974]
[1752195641893,2.25462921,115660.0,115650.0,0.18826044]
[1752195642094,1.90753793,115660.0,115650.0,0.18826044]
[1752195643995,1.73464223,115660.0,115650.0,0.18826044]
[1752195644203,1.86115571,115660.0,115650.0,0.21158035]
[1752195646004,1.50035571,115660.0,115650.0,0.21158035]
[1752195648104,1.50035571,115660.0,115650.0,0.18826044]
[1752195648701,1.72254051,115660.0,115650.0,0.18826044]
[1752195651311,2.08334051,115660.0,115650.0,0.00012974]
[1752195652612,2.52483553,115660.0,115650.0,0.00012974]
[1752195652914,0.2297008,115650.0,115640.0,0.00172943]
[1752195653217,1.0978704,115650.0,115640.0,0.00172943]
[1752195653617,1.14425262,115650.0,115640.0,0.00172943]
[1752195654410,1.0978704,115650.0,115640.0,0.00172943]
[1752195654615,1.14425262,115650.0,115640.0,0.00172943]
[1752195655719,0.2133605,115630.0,115620.0,0.37307089]
[1752195655918,1.6578253,115630.0,115620.0,0.37307089]
[1752195656120,1.73590677,115630.0,115620.0,0.37307089]
[1752195656416,2.09670677,115630.0,115620.0,0.2161815]
[1752195657908,0.05680147,115630.0,115620.0,0.4784463]
[1752195658108,0.05680147,115630.0,115620.0,0.9029663]
[1752195658313,0.22974197,115630.0,115620.0,0.9029663]
[1752195658622,0.26144197,115630.0,115620.0,0.6807815]
[1752195658819,0.26144197,115630.0,115620.0,0.3199815]
[1752195659012,0.26144197,115630.0,115620.0,0.3194615]
[1752195659813,0.05680147,115630.0,115620.0,0.6802615]
[1752195660013,0.05680147,115630.0,115620.0,0.6807015]
[1752195660208,0.22974207,115630.0,115620.0,0.9028863]
[1752195660512,0.22974197,115630.0,115620.0,0.9028863]
[1752195660713,0.05680147,115630.0,115620.0,0.9028863]
[1752195660913,0.22974197,115630.0,115620.0,0.9028863]
[1752195661117,0.22974197,115630.0,115620.0,0.8983863]
[1752195661306,0.22974197,115630.0,115620.0,0.44093]
[1752195661506,0.26054197,115630.0,115620.0,0.2530855]
[1752195661706,0.84352677,115630.0,115620.0,0.04789]
[1752195661912,0.2133755,115620.0,115610.0,0.65033297]
[1752195662122,0.2133755,115620.0,115610.0,0.70636297]
[1752195662721,1.4355755,115620.0,115610.0,0.70636297]
[1752195662920,1.43617551,115620.0,115610.0,0.70636297]
[1752195663121,1.43617551,115620.0,115610.0,0.04893]
[1752195663122,1.65836031,115620.0,115610.0,0.04893]
[1752195663422,0.1887405,115610.0,115600.0,0.60629493]
[1752195663615,0.4355753,115610.0,115600.0,0.10391003]
[1752195663816,0.65755155,115610.0,115600.0,0.00173003]
[1752195664016,1.04949935,115610.0,115600.0,0.00173003]
[1752195664612,0.65431455,115610.0,115600.0,0.00173003]
[1752195664916,0.87649935,115610.0,115600.0,0.00173003]
[1752195665818,0.65431455,115610.0,115600.0,0.17471543]
[1752195666122,0.87649935,115610.0,115600.0,0.19120543]
[1752195666321,0.51569935,115610.0,115600.0,0.19120543]
[1752195666517,0.87649935,115610.0,115600.0,0.19120543]
[1752195666713,0.34272885,115610.0,115600.0,0.19120543]
[1752195666914,0.05674405,115610.0,115600.0,0.82848023]
[1752195667120,0.05674405,115610.0,115600.0,0.85908023]
[1752195667520,0.04042,115610.0,115600.0,0.85908023]
[1752195667921,0.02465,115630.0,115620.0,0.2161796]
[1752195668121,0.04042,115630.0,115620.0,1.33163176]
[1752195668423,0.04054974,115640.0,115630.0,0.1894302]
[1752195668625,0.04054974,115640.0,115630.0,0.858405]
[1752195668824,0.04054974,115640.0,115630.0,0.98387571]
[1752195669021,0.04054974,115640.0,115630.0,0.62307571]
[1752195669223,0.04054974,115640.0,115630.0,0.98387571]
[1752195669730,0.00012974,115640.0,115630.0,0.98387571]
[1752195671224,0.00012974,115640.0,115630.0,0.6366602]
[1752195671425,0.00012974,115640.0,115630.0,0.98387571]
[1752195673230,0.04054974,115640.0,115630.0,1.59707571]
[1752195674632,0.00012974,115640.0,115630.0,1.59707571]
[1752195676222,0.00012974,115640.0,115630.0,1.59687571]
[1752195676428,0.00012974,115640.0,115630.0,1.59683571]
[1752195678237,0.00012974,115640.0,115630.0,1.2496202]
[1752195678435,0.00012974,115640.0,115630.0,1.59683571]
[1752195679536,0.00012974,115640.0,115630.0,1.66673877]
[1752195679732,0.04651196,115640.0,115630.0,1.05377877]
[1752195679935,0.08938321,115640.0,115630.0,1.66637877]
[1752195680632,0.06473321,115640.0,115630.0,1.66637877]
[1752195681836,0.01835099,115640.0,115630.0,1.66637877]
[1752195682227,0.002,115650.0,115640.0,0.1729251]
[1752195682434,0.002,115650.0,115640.0,0.98305061]
[1752195683137,0.002,115650.0,115640.0,0.98349061]
[1752195684144,0.04838222,115650.0,115640.0,0.98349061]
[1752195684435,0.02338222,115650.0,115640.0,1.15643461]
[1752195685132,0.02338222,115650.0,115640.0,0.8092191]
[1752195685334,0.02338222,115650.0,115640.0,1.15643461]
[1752195685636,0.02338222,115650.0,115640.0,0.98349061]
[1752195685836,0.02338222,115650.0,115640.0,0.98522004]
[1752195686428,0.02326974,115660.0,115650.0,0.1729102]
[1752195686429,0.00012974,115660.0,115650.0,0.1729102]
[1752195686638,0.00012974,115660.0,115650.0,1.55674571]
[1752195686832,0.00012974,115660.0,115650.0,1.55718571]
[1752195688140,0.08452284,115660.0,115650.0,1.55718571]
[1752195688342,0.02326974,115660.0,115650.0,1.55718571]
[1752195688841,0.00012974,115660.0,115650.0,1.65414298]
[1752195690648,0.02326974,115660.0,115650.0,1.2096102]
[1752195690844,0.03975974,115660.0,115650.0,1.43169659]
[1752195691041,0.03975974,115660.0,115650.0,0.81953659]
[1752195691241,0.03975974,115660.0,115650.0,0.5341502]
[1752195691435,0.27465494,115660.0,115650.0,1.1464702]
[1752195691642,0.33590804,115660.0,115650.0,1.1464702]
[1752195692040,0.57453933,115660.0,115650.0,0.36124]
[1752195692250,0.57453933,115660.0,115650.0,1.1465502]
[1752195692545,0.57453933,115660.0,115650.0,0.97356]
[1752195692846,0.57453933,115660.0,115650.0,1.1464702]
[1752195692847,0.35245294,115660.0,115650.0,1.1464702]
[1752195693345,0.35245294,115660.0,115650.0,1.1465361]
[1752195693950,0.35245294,115660.0,115650.0,0.1734161]
[1752195694242,0.29119984,115660.0,115650.0,0.7850161]
[1752195694436,0.30905745,115660.0,115650.0,0.7850161]
[1752195695345,0.66985745,115660.0,115650.0,0.6121059]
[1752195695544,1.01705186,115660.0,115650.0,0.6121059]
[1752195695744,1.01705186,115660.0,115650.0,0.7850161]
[1752195696246,1.01705186,115660.0,115650.0,0.1729761]
[1752195697245,1.07830496,115660.0,115650.0,0.1729761]
[1752195697443,1.01705186,115660.0,115650.0,0.1729761]
[1752195697639,0.66985745,115660.0,115650.0,0.1729761]
[1752195697944,0.30905745,115660.0,115650.0,0.5337761]
[1752195698144,0.30905745,115660.0,115650.0,0.5342161]
[1752195698350,0.30905745,115660.0,115650.0,0.1734161]
[1752195698647,0.30905745,115660.0,115650.0,0.5337761]
[1752195698844,0.30905745,115660.0,115650.0,0.5342561]
[1752195699548,0.13616225,115660.0,115650.0,0.5342561]
[1752195700449,0.30905745,115660.0,115650.0,0.5342561]
[1752195700750,0.30905745,115660.0,115650.0,0.1734561]
[1752195701049,0.66985745,115660.0,115650.0,6.59e-05]
[1752195701346,0.67045746,115660.0,115650.0,6.59e-05]
[1752195701546,0.1729102,115650.0,115640.0,0.00172943]
[1752195701748,1.06313681,115650.0,115640.0,0.00172943]
[1752195701952,1.06373682,115650.0,115640.0,0.00172943]
[1752195702154,0.71654241,115650.0,115640.0,0.17465453]
[1752195702452,0.29379782,115650.0,115640.0,0.17475453]
[1752195703155,0.29319781,115650.0,115640.0,0.17475453]
[1752195703846,0.12028761,115650.0,115640.0,0.17475453]
[1752195704052,0.12028761,115650.0,115640.0,0.88280894]
[1752195704554,0.08928761,115650.0,115640.0,0.88280894]
[1752195704750,0.08928761,115650.0,115640.0,0.91560894]
[1752195704955,0.04099761,115650.0,115640.0,0.91560894]
[1752195705157,0.04099761,115650.0,115640.0,0.94740894]
[1752195705848,0.01785761,115650.0,115640.0,0.94740894]
[1752195706047,0.08940464,115660.0,115650.0,0.1730102]
[1752195706253,0.08940464,115660.0,115650.0,1.49346461]
[1752195706254,0.07423499,115660.0,115650.0,1.49346461]
[1752195706455,0.10422599,115660.0,115650.0,1.55596461]
[1752195706955,0.03460499,115660.0,115650.0,1.55596461]
[1752195707552,0.10422599,115660.0,115650.0,1.55596461]
[1752195707952,0.05774499,115660.0,115650.0,1.55640461]
[1752195708154,0.03460499,115660.0,115650.0,1.55640461]
[1752195709659,0.01667464,115660.0,115650.0,1.55640461]
[1752195711655,0.01661464,115660.0,115650.0,1.90359902]
[1752195714860,0.01661464,115660.0,115650.0,0.94400461]
[1752195715067,0.05693464,115660.0,115650.0,0.5967502]
[1752195715269,0.05693464,115660.0,115650.0,1.1761102]
[1752195715562,0.13591564,115660.0,115650.0,1.1761102]
[1752195715767,0.08943464,115660.0,115650.0,1.1761102]
[1752195716166,0.08943464,115660.0,115650.0,0.5649502]
[1752195716357,0.08943464,115660.0,115650.0,0.5342502]
[1752195716358,0.12023464,115660.0,115650.0,0.5342502]
[1752195716561,0.12023464,115660.0,115650.0,1.1454102]
[1752195717071,0.12023464,115660.0,115650.0,1.49260461]
[1752195719973,0.12023464,115660.0,115650.0,1.49256461]
[1752195720669,0.12023464,115660.0,115650.0,1.52276461]
[1752195721176,0.08943464,115660.0,115650.0,1.52276461]
[1752195721376,0.08943464,115660.0,115650.0,1.55506461]
[1752195722480,0.04043464,115660.0,115650.0,1.55506461]
[1752195723483,0.04043464,115660.0,115650.0,1.2078702]
[1752195723670,0.05693464,115660.0,115650.0,1.55506461]
[1752195724384,0.10341564,115660.0,115650.0,1.55506461]
[1752195724580,0.05693464,115660.0,115650.0,1.55506461]
[1752195725181,0.05693464,115660.0,115650.0,1.55502461]
[1752195725983,0.10341564,115660.0,115650.0,1.55502461]
[1752195726373,0.08691564,115660.0,115650.0,1.55502461]
[1752195726580,0.01661464,115660.0,115650.0,1.55502461]
[1752195726982,0.01661464,115660.0,115650.0,1.2078302]
[1752195727182,0.01661464,115660.0,115650.0,1.55502461]
[1752195728879,0.01661464,115660.0,115650.0,1.65204058]
[1752195730081,0.04043464,115660.0,115650.0,1.65204058]
[1752195730786,0.04043464,115660.0,115650.0,1.2078302]
[1752195730986,0.04043464,115660.0,115650.0,1.65196058]
[1752195731381,0.04043464,115660.0,115650.0,1.42985539]
[1752195732184,0.08691564,115660.0,115650.0,1.42985539]
[1752195732391,0.04043464,115660.0,115650.0,1.42985539]
[1752195732587,0.04043464,115660.0,115650.0,1.65196058]
[1752195733088,0.08691564,115660.0,115650.0,1.65196058]
[1752195733388,0.06309564,115660.0,115650.0,1.65196058]
[1752195734380,0.01661464,115660.0,115650.0,1.67526098]
[1752195734780,0.05693464,115660.0,115650.0,0.5575506]
[1752195734989,0.05693464,115660.0,115650.0,1.1685506]
[1752195735289,0.12073464,115660.0,115650.0,1.1685506]
[1752195735489,0.12073464,115660.0,115650.0,1.39065579]
[1752195736891,0.12073464,115660.0,115650.0,0.77965579]
[1752195737094,0.12073464,115660.0,115650.0,1.39065579]
[1752195739582,0.12073464,115660.0,115650.0,1.36735539]
[1752195740390,0.12073464,115660.0,115650.0,1.39065579]
[1752195742792,0.08041464,115660.0,115650.0,1.39055579]
[1752195742991,0.11992464,115660.0,115650.0,1.39055579]
[1752195745295,0.11992464,115660.0,115650.0,1.42075579]
[1752195746098,0.08682464,115660.0,115650.0,1.42075579]
[1752195746397,0.07048464,115660.0,115650.0,1.45265579]
[1752195746698,0.08682464,115660.0,115650.0,1.45265579]
[1752195747197,0.08682464,115660.0,115650.0,0.84165579]
[1752195747491,0.08682464,115660.0,115650.0,1.2304706]
[1752195747697,0.08682464,115660.0,115650.0,1.45257579]
[1752195750398,0.08682464,115660.0,115650.0,0.5893506]
[1752195750604,0.11842464,115660.0,115650.0,1.1683306]
[1752195750797,0.51342543,115660.0,115650.0,1.1683309]
[1752195750997,0.51342543,115660.0,115650.0,1.1450305]
[1752195751196,0.34052983,115660.0,115650.0,1.1450305]
[1752195751403,0.51342543,115660.0,115650.0,1.1450305]
[1752195751895,0.51342543,115660.0,115650.0,0.5341505]
[1752195752097,0.51342543,115660.0,115650.0,1.1450305]
[1752195752700,0.51342543,115660.0,115650.0,0.5341505]
[1752195754091,0.34052983,115660.0,115650.0,0.5341505]
[1752195754797,0.51342543,115660.0,115650.0,0.1733505]
[1752195754997,0.51342543,115660.0,115650.0,0.1729105]
[1752195755199,0.35052983,115660.0,115650.0,0.1729105]
[1752195756014,0.39701083,115660.0,115650.0,0.1729105]
[1752195756306,0.35052983,115660.0,115650.0,0.1729105]
[1752195756599,0.12842464,115660.0,115650.0,0.1729105]
[1752195756803,0.17490564,115660.0,115650.0,0.1729105]
[1752195757506,0.12842464,115660.0,115650.0,0.1729105]
[1752195758210,0.35052983,115660.0,115650.0,0.1729105]
[1752195758507,0.12898465,115660.0,115650.0,0.39501569]
[1752195758807,0.12842464,115660.0,115650.0,0.75625569]
[1752195759106,0.12842464,115660.0,115650.0,0.78775569]
[1752195759503,0.09682464,115660.0,115650.0,0.81955569]
[1752195761606,0.09882464,115660.0,115650.0,0.81955569]
[1752195763107,0.14530564,115660.0,115650.0,0.81955569]
[1752195765304,0.09826564,115660.0,115650.0,0.81955569]
[1752195765607,0.07509564,115660.0,115650.0,1.04166088]
[1752195765805,0.05855074,115660.0,115650.0,1.04166088]
[1752195766211,0.01206974,115660.0,115650.0,1.04166088]
[1752195767707,0.046481,115670.0,115660.0,0.172896]
[1752195767910,0.046481,115670.0,115660.0,1.43280119]
[1752195768111,0.08711459,115690.0,115680.0,0.1728661]
[1752195768308,0.06394459,115690.0,115680.0,1.58847648]
[1752195768508,0.06394459,115690.0,115680.0,1.65417648]
[1752195768803,0.06394459,115690.0,115680.0,1.66266232]
[1752195770205,0.06394459,115690.0,115680.0,1.44055713]
[1752195770511,0.06794459,115690.0,115680.0,1.44055713]
[1752195770713,0.006,115690.0,115680.0,1.66266232]
[1752195771105,0.003,115690.0,115680.0,1.21845194]
[1752195771304,0.04251,115690.0,115680.0,1.44055713]
[1752195772108,0.02617,115690.0,115680.0,1.44055713]
[1752195773006,0.04119,115690.0,115680.0,1.44099713]
[1752195773202,0.04119,115690.0,115680.0,0.5672061]
[1752195773408,0.10399,115690.0,115680.0,1.1776461]
[1752195773609,0.10399,115690.0,115680.0,0.8168461]
[1752195774510,0.2768417,115690.0,115680.0,0.7837461]
[1752195774709,0.10399,115690.0,115680.0,0.7837461]
[1752195774911,0.2768417,115690.0,115680.0,0.7837461]
[1752195775514,0.10399,115690.0,115680.0,0.7837467]
[1752195775710,0.16606641,115690.0,115680.0,0.7837467]
[1752195776102,0.10326641,115690.0,115680.0,0.7837467]
[1752195776303,0.10326641,115690.0,115680.0,1.42845189]
[1752195776509,0.02617,115690.0,115680.0,1.42845189]
[1752195776709,0.08824641,115690.0,115680.0,1.42845189]
[1752195777009,0.02617,115690.0,115680.0,1.42845189]
[1752195777416,0.08824641,115690.0,115680.0,1.42845189]
[1752195778319,0.02617,115690.0,115680.0,1.42845189]
[1752195778713,0.08823585,115690.0,115680.0,1.42845189]
[1752195779510,0.04119,115690.0,115680.0,0.5959067]
[1752195779719,0.89111284,115690.0,115680.0,0.00044]
[1752195780024,0.94757419,115690.0,115680.0,0.1728667]
[1752195780322,1.00964004,115690.0,115680.0,0.1728667]
[1752195780617,0.2124267,115680.0,115670.0,0.19106819]
[1752195780821,1.09803504,115680.0,115670.0,0.00012974]
[1752195781015,0.9379957,115680.0,115670.0,0.00012974]
[1752195781725,0.9379957,115680.0,115670.0,0.17301134]
[1752195781914,0.9379957,115680.0,115670.0,0.00012974]
[1752195782109,0.9379957,115680.0,115670.0,0.17301134]
[1752195783219,0.93855571,115680.0,115670.0,0.17301134]
[1752195783618,0.71645052,115680.0,115670.0,0.17301134]
[1752195783921,0.94255571,115680.0,115670.0,0.17301134]
[1752195784408,2.10104986,115680.0,115670.0,0.17301134]
[1752195784915,2.22605585,115680.0,115670.0,0.17301134]
[1752195787424,2.22605585,115680.0,115670.0,0.00012974]
[1752195788217,2.27261724,115680.0,115670.0,0.00012974]
[1752195790319,1.92550606,115680.0,115670.0,0.17301144]
[1752195790521,1.92550606,115680.0,115670.0,0.00012974]
[1752195790725,1.92550606,115680.0,115670.0,0.17301144]
[1752195791419,1.56470606,115680.0,115670.0,0.17301144]
[1752195792426,1.56470606,115680.0,115670.0,0.00012974]
[1752195793029,1.56470606,115680.0,115670.0,0.17301144]
[1752195793219,1.92550606,115680.0,115670.0,0.17301144]
[1752195794124,0.10727936,115680.0,115670.0,0.52012262]
[1752195794327,0.10727936,115680.0,115670.0,0.94562262]
[1752195794528,0.04569797,115680.0,115670.0,1.55574262]
[1752195794719,0.02059796,115680.0,115670.0,1.55574262]
[1752195795818,0.02059796,115680.0,115670.0,1.56925721]
[1752195796522,0.01759796,115680.0,115670.0,1.56925721]
[1752195797218,0.01659796,115680.0,115670.0,1.56925721]
[1752195798825,0.01659796,115680.0,115670.0,1.55574262]
[1752195799022,0.01659796,115680.0,115670.0,1.56925678]
[1752195799223,0.01659796,115680.0,115670.0,1.2221456]
[1752195799422,0.01659796,115680.0,115670.0,1.56925678]
[1752195799623,0.01659796,115680.0,115670.0,1.56973678]
[1752195800129,0.04113796,115680.0,115670.0,1.59291426]
[1752195801418,0.01659796,115680.0,115670.0,1.59291426]
[1752195803432,0.04049796,115680.0,115670.0,1.59279426]
[1752195803833,0.01659796,115680.0,115670.0,1.59279426]
[1752195804334,0.01659796,115680.0,115670.0,1.56949678]
[1752195804734,0.01659796,115680.0,115670.0,1.55598262]
[1752195805034,0.01659796,115680.0,115670.0,1.5694969]
[1752195805234,0.01659796,115680.0,115670.0,1.55598262]
[1752195806829,0.01659796,115680.0,115670.0,1.43089759]
[1752195808537,0.04159,115690.0,115680.0,0.1728668]
[1752195808729,0.04159,115690.0,115680.0,0.45739295]
[1752195809028,0.04159,115690.0,115680.0,1.39691295]
[1752195809229,0.10519,115690.0,115680.0,1.03611295]
[1752195809638,0.10619,115690.0,115680.0,1.03611295]
[1752195809831,0.10619,115690.0,115680.0,1.39691295]
[1752195812140,0.10619,115690.0,115680.0,1.1748868]
[1752195812332,0.10619,115690.0,115680.0,1.39691295]
[1752195812839,0.50106795,115690.0,115680.0,0.5336668]
[1752195813040,0.50162796,115690.0,115680.0,1.1437868]
[1752195813242,0.27960181,115690.0,115680.0,1.1437868]
[1752195813540,0.2790418,115690.0,115680.0,1.1437868]
[1752195814131,0.2790418,115690.0,115680.0,0.7829868]
[1752195814737,0.10619,115690.0,115680.0,0.7829868]
[1752195815736,0.10619,115690.0,115680.0,1.00501295]
[1752195815941,0.10619,115690.0,115680.0,1.36581295]
[1752195819241,0.10619,115690.0,115680.0,1.36561295]
[1752195820347,0.15275139,115690.0,115680.0,1.00481295]
[1752195820742,0.10619,115690.0,115680.0,1.00481295]
[1752195820937,0.2790418,115690.0,115680.0,1.00481295]
[1752195821148,0.2790418,115690.0,115680.0,1.00477295]
[1752195821350,0.2790418,115690.0,115680.0,0.7827468]
[1752195821944,0.32560319,115690.0,115680.0,0.7827468]
[1752195822550,0.32560319,115690.0,115680.0,1.00477295]
[1752195823150,0.32560319,115690.0,115680.0,0.7827468]
[1752195823844,0.15275139,115690.0,115680.0,1.00477295]
[1752195824042,0.15275139,115690.0,115680.0,1.36557295]
[1752195824445,0.10619,115690.0,115680.0,1.36557295]
[1752195824743,0.07357314,115690.0,115680.0,1.2267991]
[1752195824938,0.04259,115690.0,115680.0,1.42887295]
[1752195825246,0.07459,115690.0,115680.0,1.42887295]
[1752195827354,0.07459,115690.0,115680.0,1.06807295]
[1752195827652,0.07459,115690.0,115680.0,1.42887295]
[1752195828253,0.12126699,115690.0,115680.0,1.42887295]
[1752195828453,0.07459,115690.0,115680.0,1.42887295]
[1752195829053,0.04967885,115690.0,115680.0,1.6508991]
[1752195829250,0.003,115690.0,115680.0,1.42887295]
[1752195829450,0.07358114,115690.0,115680.0,1.42887295]
[1752195829647,0.0269,115690.0,115680.0,1.42887295]
[1752195830455,0.0269,115690.0,115680.0,1.06807295]
[1752195830656,0.0269,115690.0,115680.0,1.42887295]
[1752195831462,0.003,115690.0,115680.0,1.6508991]
[1752195831662,0.04968069,115690.0,115680.0,1.6508991]
[1752195831871,0.003,115690.0,115680.0,1.8979991]
[1752195832073,0.06206585,115700.0,115690.0,0.1728519]
[1752195832274,0.07836652,115710.0,115700.0,0.1728369]
[1752195832463,0.01630067,115710.0,115700.0,1.42602305]
[1752195832666,0.01630067,115710.0,115700.0,1.6480492]
[1752195833269,0.06206585,115720.0,115710.0,0.169822]
[1752195833566,0.06206585,115720.0,115710.0,1.10684195]
[1752195833770,0.06206585,115720.0,115710.0,0.8848158]
[1752195834474,0.31586597,115730.0,115720.0,0.19067385]
[1752195834657,0.0151,115710.0,115700.0,0.46521282]
[1752195834966,0.44960286,115710.0,115700.0,0.98791822]
[1752195835158,0.44960286,115710.0,115700.0,0.01799822]
[1752195835159,1.09682901,115710.0,115700.0,0.01799822]
[1752195835359,0.87480286,115710.0,115700.0,0.01843822]
[1752195835658,2.73776501,115710.0,115700.0,0.00012974]
[1752195835865,0.2111719,115690.0,115680.0,0.78363563]
[1752195836065,0.44970936,115690.0,115680.0,0.78363563]
[1752195836359,0.68498936,115690.0,115680.0,0.00172883]
[1752195837360,0.78544321,115690.0,115680.0,0.00172883]
[1752195837667,0.03832,115690.0,115680.0,1.22764793]
[1752195837872,0.36092974,115700.0,115690.0,0.1728519]
[1752195838069,0.00012974,115700.0,115690.0,0.45947805]
[1752195838276,0.03844974,115700.0,115690.0,0.45947805]
[1752195838774,0.03844974,115700.0,115690.0,0.58434844]
[1752195838974,0.03844974,115700.0,115690.0,0.58478844]
[1752195839276,0.21128664,115700.0,115690.0,0.58478844]
[1752195839478,0.24378664,115700.0,115690.0,0.58578844]
[1752195839663,0.59068318,115700.0,115690.0,0.1742919]
[1752195839868,0.62408319,115700.0,115690.0,0.1738519]
[1752195840574,0.27718665,115700.0,115690.0,0.1738519]
[1752195840772,0.63738664,115700.0,115690.0,0.1738519]
[1752195840973,0.63794665,115700.0,115690.0,0.1738519]
[1752195843171,0.27714665,115700.0,115690.0,0.1738519]
[1752195843366,0.63738664,115700.0,115690.0,0.1738519]
[1752195843567,0.03844974,115700.0,115690.0,0.53880553]
[1752195843874,0.02334974,115700.0,115690.0,0.96180553]
[1752195844076,0.00212974,115700.0,115690.0,0.96180553]
[1752195844973,0.00012974,115700.0,115690.0,1.30870207]
[1752195845173,0.01643471,115710.0,115700.0,0.172837]
[1752195845368,0.01643471,115710.0,115700.0,1.89871008]
[1752195845976,0.01643471,115710.0,115700.0,1.204917]
[1752195846171,0.03965471,115710.0,115700.0,1.55181354]
[1752195847076,0.05475471,115710.0,115700.0,1.55181354]
[1752195847274,0.05675471,115710.0,115700.0,1.55181354]
[1752195847883,0.05675471,115710.0,115700.0,1.19101354]
[1752195848179,0.05675471,115710.0,115700.0,1.19149354]
[1752195848679,0.05675471,115710.0,115700.0,1.55229354]
[1752195848978,0.05675471,115710.0,115700.0,0.844597]
[1752195849179,0.04165471,115710.0,115700.0,1.55229354]
[1752195850977,0.05675471,115710.0,115700.0,0.94341354]
[1752195851178,0.05675471,115710.0,115700.0,1.55217354]
[1752195851872,0.04165471,115710.0,115700.0,1.55217354]
[1752195852072,0.08826341,115710.0,115700.0,1.55217354]
[1752195852474,0.06504341,115710.0,115700.0,1.55217354]
[1752195852871,0.08826341,115710.0,115700.0,1.55217354]
[1752195854970,0.06504341,115710.0,115700.0,1.55217354]
[1752195855986,0.06504341,115710.0,115700.0,1.56059011]
[1752195859785,0.06504341,115710.0,115700.0,0.94341354]
[1752195859986,0.08826341,115710.0,115700.0,1.55197354]
[1752195860180,0.04165471,115710.0,115700.0,1.55197354]
[1752195861084,0.01843471,115710.0,115700.0,1.55197354]
[1752195864290,0.06504341,115710.0,115700.0,1.55197354]
[1752195866586,0.01843471,115710.0,115700.0,1.55197354]
[1752195867286,0.06504341,115710.0,115700.0,1.55197354]
[1752195868092,0.08848341,115710.0,115700.0,1.55197354]
[1752195869094,0.46577341,115710.0,115700.0,0.781677]
[1752195869392,0.16776574,115710.0,115700.0,0.781677]
[1752195869589,0.12116471,115710.0,115700.0,0.781677]
[1752195871181,0.18334567,115710.0,115700.0,1.12857354]
[1752195874298,0.12116471,115710.0,115700.0,1.14208642]
[1752195874794,0.10473,115710.0,115700.0,1.50288642]
[1752195875098,0.10473,115710.0,115700.0,1.14208642]
[1752195877298,0.10473,115710.0,115700.0,1.12857354]
[1752195878000,0.10473,115710.0,115700.0,1.48937354]
[1752195880401,0.10473,115710.0,115700.0,1.12857354]
[1752195880598,0.98524854,115710.0,115700.0,0.00048]
[1752195880791,0.2827058,115700.0,115690.0,0.7812087]
[1752195880992,0.7229958,115700.0,115690.0,0.7812087]
[1752195881190,0.7229958,115700.0,115690.0,1.00327992]
[1752195881795,0.46373,115700.0,115690.0,1.00327992]
[1752195881994,0.10293,115700.0,115690.0,1.00327992]
[1752195882903,0.10293,115700.0,115690.0,1.12810429]
[1752195883201,0.28432197,115700.0,115690.0,1.12810429]
[1752195883901,0.2757669,115700.0,115690.0,1.12810429]
[1752195884200,0.10293,115700.0,115690.0,1.12810429]
[1752195885002,0.10293,115700.0,115690.0,1.12858429]